bitfinex/quotes_ETHUSD_20250804
["timestamp","ask_amount","ask_price","bid_price","bid_amount"]
[1754317031750,2.1368,3665.0,3664.9,2.72858741]
[1754317032460,2.1368,3665.0,3664.9,4.10108741]
[1754317032669,2.0,3665.0,3664.9,2.72858741]
[1754317034940,2.0,3665.0,3664.8,2.72865312]
[1754317035141,2.0,3665.0,3664.9,2.72858741]
[1754317035341,2.0,3665.0,3664.9,3.61378741]
[1754317035527,2.0,3665.0,3664.9,4.05108741]
[1754317036556,2.0,3665.0,3664.9,2.67858741]
[1754317040442,2.0,3665.0,3664.9,3.61378741]
[1754317040647,2.0,3665.0,3664.9,2.67858741]
[1754317040869,2.0,3665.0,3664.9,3.61378741]
[1754317041040,2.0,3665.0,3664.4,0.9352]
[1754317041041,2.001,3665.0,3664.4,0.9352]
[1754317041380,2.001,3665.0,3664.1,2.72918315]
[1754317041381,4.479,3664.9,3664.1,2.72918315]
[1754317041683,4.479,3664.9,3664.7,2.72873493]
[1754317041977,4.479,3664.9,3664.0,1.3725]
[1754317042185,4.479,3664.9,3664.0,4.10173729]
[1754317042401,4.479,3664.9,3664.1,2.72918315]
[1754317042696,4.479,3664.9,3664.6,2.72880547]
[1754317042846,4.479,3664.9,3664.3,2.72903419]
[1754317042847,0.1368,3664.4,3664.3,2.72903419]
[1754317043045,0.1368,3664.4,3664.2,2.72908701]
[1754317043245,0.1368,3664.2,3663.8,2.72940662]
[1754317043548,4.478,3664.6,3664.3,2.7289761]
[1754317043773,4.478,3664.6,3663.8,0.9352]
[1754317043973,0.1368,3664.1,3664.0,2.72925764]
[1754317046477,2.001,3665.0,3664.0,1.3725]
[1754317046679,0.1368,3664.5,3664.2,2.72910867]
[1754317046882,0.1368,3664.5,3664.4,2.72895972]
[1754317047800,0.1368,3664.5,3664.4,3.66415972]
[1754317048012,0.1368,3664.5,3664.4,2.72895972]
[1754317048510,0.1368,3664.5,3664.2,2.7291067]
[1754317048690,0.7244,3664.5,3664.2,2.7291067]
[1754317048898,0.1368,3664.3,3664.2,2.7291067]
[1754317051025,0.1368,3664.3,3664.2,2.72910867]
[1754317051195,0.1368,3664.3,3663.7,4.476]
[1754317051360,0.1368,3664.0,3663.9,2.72933213]
[1754317051860,4.475,3664.7,3664.4,2.72889855]
[1754317052065,0.1368,3664.5,3664.4,2.72889855]
[1754317052293,0.1368,3664.5,3664.4,2.72895972]
[1754317052468,0.1368,3664.5,3664.3,2.72900734]
[1754317052670,4.475,3664.7,3664.0,0.8948]
[1754317052871,4.474,3664.7,3664.4,2.7289093]
[1754317053069,2.4428,3665.0,3664.4,2.72895972]
[1754317053271,4.474,3664.9,3664.5,2.7288157]
[1754317053586,4.474,3664.9,3664.6,2.72880261]
[1754317053790,0.1368,3664.7,3664.6,2.72881078]
[1754317053995,0.1368,3664.7,3664.5,2.7288678]
[1754317054300,4.474,3664.9,3664.5,2.7288678]
[1754317054596,0.1368,3664.6,3664.1,2.72912548]
[1754317054822,0.1368,3664.6,3663.8,5.8123]
[1754317054823,0.1368,3664.3,3664.2,2.7290989]
[1754317054985,1.1662,3664.8,3664.3,2.72902846]
[1754317055399,0.1368,3664.4,3664.3,2.72902846]
[1754317056208,0.1368,3664.4,3664.3,3.62182846]
[1754317056619,0.1368,3664.4,3664.3,4.06832846]
[1754317057148,3.42068934,3664.9,3664.0,0.002]
[1754317057304,1.1339,3664.7,3664.0,0.002]
[1754317057500,2.72893713,3664.5,3664.0,0.002]
[1754317057685,2.72896044,3664.4,3664.0,0.002]
[1754317057891,3.42106044,3664.4,3664.0,0.002]
[1754317058090,2.72903419,3664.3,3664.0,0.002]
[1754317058428,2.72918315,3664.1,3664.0,0.002]
[1754317058609,2.72918315,3664.1,3663.0,2.72999618]
[1754317058814,2.7293807,3663.9,3663.2,2.72983191]
[1754317059221,2.72942759,3663.8,3663.1,3.62270491]
[1754317059402,2.72942759,3663.8,3662.6,4.471]
[1754317059403,0.6921,3663.9,3662.8,0.8928]
[1754317059728,2.72945402,3663.8,3662.8,0.8928]
[1754317060125,0.6921,3663.9,3662.4,17.57017043]
[1754317060126,31.1339,3663.7,3662.4,15.73256746]
[1754317060294,35.6049,3663.6,3662.4,17.57019944]
[1754317060495,2.72997651,3663.1,3662.4,17.57019254]
[1754317060696,4.471,3663.0,3662.4,14.83976746]
[1754317061030,4.471,3663.0,3662.5,0.8928]
[1754317061222,0.6921,3664.0,3662.6,1.3393]
[1754317061438,2.72981801,3663.3,3662.4,15.73256746]
[1754317061597,3.42174544,3663.5,3662.4,14.83976746]
[1754317061803,4.47,3663.4,3662.9,2.73000932]
[1754317061999,0.80198903,3663.3,3662.9,0.8928]
[1754317062212,4.47,3663.3,3662.7,2.73022139]
[1754317062513,4.47,3663.2,3662.6,3.62309713]
[1754317062715,4.47,3663.1,3662.7,2.73022258]
[1754317062903,0.820321,3663.5,3662.8,1.3393]
[1754317063106,0.820321,3663.5,3663.4,2.72970464]
[1754317063305,0.820321,3663.5,3663.3,2.72977241]
[1754317063505,0.820321,3663.5,3663.1,0.8928]
[1754317063506,4.47,3663.4,3663.1,3.62271766]
[1754317063715,4.9990321,3663.4,3663.1,0.4465]
[1754317063914,0.5290321,3663.4,3663.3,2.72977916]
[1754317064236,0.820321,3663.5,3663.4,2.72970464]
[1754317064441,0.820321,3663.5,3663.4,4.06900464]
[1754317065614,0.001,3664.9,3664.1,2.72918315]
[1754317065803,0.001,3664.9,3663.6,2.72950232]
[1754317065999,0.001,3664.9,3664.8,2.72866186]
[1754317066000,4.47,3664.9,3664.8,2.72866186]
[1754317066300,5.2151612,3664.9,3664.6,3.6215922]
[1754317066538,5.2151612,3664.9,3664.3,0.8928]
[1754317066704,5.2151612,3664.9,3664.7,2.72871368]
[1754317066904,5.2151612,3664.9,3664.8,2.72866186]
[1754317067442,0.8829612,3664.9,3664.2,0.4465]
[1754317067617,0.1368,3664.7,3664.6,2.72881078]
[1754317068457,0.1368,3664.7,3664.2,0.4465]
[1754317068668,0.1368,3664.7,3664.1,3.62197328]
[1754317068951,0.001,3664.9,3664.2,0.8928]
[1754317069270,30.0,3664.8,3664.0,2.72920417]
[1754317069409,2.72866186,3664.7,3664.1,2.72912032]
[1754317069610,0.1368,3664.0,3663.8,0.8928]
[1754317069909,0.1368,3664.0,3663.9,3.62213213]
[1754317070109,4.467,3664.3,3663.3,0.1368]
[1754317070404,0.1368,3663.8,3663.7,2.72948112]
[1754317070609,2.72912925,3664.2,3663.6,2.72953996]
[1754317070859,0.78882293,3664.1,3663.7,2.72946357]
[1754317071107,0.78882293,3664.1,3663.3,3.62257581]
[1754317071356,0.78882293,3664.1,3663.6,2.72955348]
[1754317071515,0.78882293,3664.1,3663.4,1.3393]
[1754317071718,4.466,3664.0,3663.9,2.72926016]
[1754317071963,4.466,3664.2,3664.1,2.72911295]
[1754317072164,0.820054,3664.8,3664.4,2.72891198]
[1754317072309,0.1368,3664.5,3664.2,2.72910867]
[1754317072503,4.466,3664.7,3664.2,2.72910867]
[1754317072504,4.466,3664.7,3664.5,2.72888315]
[1754317072720,0.5287011,3664.6,3664.5,2.72888315]
[1754317072907,0.6655011,3664.6,3664.5,2.72888315]
[1754317073104,4.6018,3664.6,3664.5,2.72888315]
[1754317073511,4.6018,3664.6,3664.4,3.62173091]
[1754317073927,4.6018,3664.6,3663.9,0.8928]
[1754317074142,4.465,3664.6,3663.8,2.72940662]
[1754317074363,4.465,3664.6,3664.1,2.72916859]
[1754317074668,4.465,3664.6,3663.8,2.72940662]
[1754317074669,0.83137672,3664.5,3664.0,2.72922979]
[1754317074842,0.83137672,3664.5,3664.1,2.72916486]
[1754317075163,4.464,3664.4,3664.3,2.72903419]
[1754317075457,0.83137672,3664.5,3664.4,2.72895972]
[1754317075661,4.464,3664.5,3664.4,3.62175972]
[1754317075863,4.6008,3664.5,3664.4,3.62175972]
[1754317076028,4.6008,3664.5,3664.4,4.06825972]
[1754317076227,0.1368,3664.5,3664.4,4.06825972]
[1754317076427,0.1368,3664.5,3664.4,2.72895972]
[1754317076633,0.1368,3664.5,3664.4,3.62175972]
[1754317077053,0.1368,3664.5,3664.2,2.72908425]
[1754317077268,0.59688,3664.5,3664.3,2.72901942]
[1754317077464,0.46008,3664.5,3664.2,0.8928]
[1754317077672,0.46008,3664.5,3664.4,2.72895972]
[1754317077973,0.001,3664.9,3664.7,2.72873101]
[1754317078177,0.001,3664.9,3664.8,2.72866186]
[1754317078602,4.5998,3664.9,3664.8,3.62146186]
[1754317079766,0.1378,3664.9,3664.8,3.62146186]
[1754317079949,4.5998,3664.9,3664.5,0.8928]
[1754317080152,4.5998,3664.9,3664.2,3.17560564]
[1754317080153,0.1368,3664.7,3664.2,1.3393]
[1754317080352,0.1368,3664.3,3664.2,2.72906306]
[1754317081199,0.1368,3664.3,3664.2,2.72910867]
[1754317081350,0.1368,3664.3,3664.2,4.12000867]
[1754317082384,0.1368,3664.3,3664.2,3.64670867]
[1754317082880,0.1368,3664.3,3664.2,4.12000867]
[1754317087681,0.1368,3664.3,3664.2,3.64670867]
[1754317089802,0.1368,3664.3,3664.2,4.12000867]
[1754317089989,0.001,3664.9,3664.8,2.72866186]
[1754317090187,4.6732643,3664.9,3664.7,2.72871475]
[1754317090568,0.1368,3664.8,3664.7,2.72871475]
[1754317091094,0.001,3664.9,3664.7,2.72871475]
[1754317091405,0.1378,3664.9,3664.8,2.72866186]
[1754317091566,0.3677443,3664.9,3664.2,5.3726]
[1754317092073,0.1368,3664.3,3664.2,3.64670867]
[1754317092275,0.1368,3664.3,3664.2,4.12000867]
[1754317094881,0.1368,3664.3,3664.2,3.64670867]
[1754317095382,0.1368,3664.3,3664.2,4.14729975]
[1754317095700,0.001,3664.9,3664.8,2.72866186]
[1754317096269,4.453,3664.9,3664.8,2.72866186]
[1754317096470,0.001,3664.9,3664.8,3.64626186]
[1754317096768,0.001,3664.9,3664.8,4.11956186]
[1754317098307,0.001,3664.9,3664.8,4.80439265]
[1754317100308,0.001,3664.9,3664.8,4.11956186]
[1754317101917,0.001,3664.9,3664.8,8.56956186]
[1754317102410,0.001,3664.9,3664.8,2.72866186]
[1754317102612,0.001,3664.9,3664.8,8.56856186]
[1754317102815,0.001,3664.9,3664.8,8.09526186]
[1754317103000,0.001,3664.9,3664.6,2.72878139]
[1754317103180,0.6620643,3664.9,3664.4,0.002]
[1754317103514,1.7559643,3664.9,3664.5,2.72881233]
[1754317103678,1.7559643,3664.9,3664.4,0.002]
[1754317103878,0.6620643,3664.9,3664.5,2.7288568]
[1754317104080,0.6620643,3664.9,3664.4,0.002]
[1754317104273,0.6620643,3664.9,3664.5,2.72888525]
[1754317104274,0.71100643,3664.8,3664.5,2.72888525]
[1754317105079,0.71100643,3664.8,3664.4,0.002]
[1754317105279,1.80490643,3664.8,3664.4,0.002]
[1754317105525,0.1368,3664.5,3664.4,0.002]
[1754317105876,3.95958525,3664.5,3664.4,0.002]
[1754317106114,2.41533389,3664.5,3663.8,2.7293709]
[1754317106302,0.1368,3664.1,3663.5,4.19076525]
[1754317106503,7.17626528,3664.0,3663.4,2.72968345]
[1754317106815,0.1368,3663.6,3663.3,2.72976348]
[1754317106991,0.1368,3663.6,3663.3,2.72976798]
[1754317107195,0.1368,3663.6,3663.5,2.72963013]
[1754317107916,0.1368,3663.6,3663.5,4.12053013]
[1754317108127,0.1368,3664.2,3663.6,2.72955562]
[1754317108283,0.1368,3664.2,3664.1,2.72918315]
[1754317108477,0.001,3664.9,3664.8,2.72866186]
[1754317108679,0.1378,3664.9,3664.8,2.72866186]
[1754317108993,0.1378,3664.9,3664.8,3.64626186]
[1754317109306,0.1378,3664.9,3664.8,4.11956186]
[1754317109504,0.001,3664.9,3664.8,4.11956186]
[1754317109821,0.001,3664.9,3664.8,4.94119514]
[1754317111024,0.16164303,3665.2,3664.9,2.72858741]
[1754317111195,0.16164303,3665.2,3665.1,2.72843851]
[1754317111518,0.34507133,3666.8,3665.0,5.8236]
[1754317111723,0.404,3667.6,3665.0,5.8236]
[1754317111724,0.819654,3667.1,3665.3,16.54725461]
[1754317111940,0.136,3666.6,3666.2,2.72759933]
[1754317112084,32.72704437,3667.0,3665.9,2.7277905]
[1754317112085,0.136,3666.2,3666.1,2.72769428]
[1754317112523,0.136,3666.2,3665.7,2.72793445]
[1754317112720,0.136,3666.2,3665.2,0.9053]
[1754317112721,0.136,3665.8,3665.2,0.9053]
[1754317113021,0.136,3665.8,3665.0,0.1368]
[1754317113234,0.136,3665.8,3665.7,2.72799192]
[1754317113518,4.443,3666.6,3666.0,2.72775789]
[1754317113715,0.6594,3666.7,3666.1,2.7276804]
[1754317114022,3.1648925,3666.8,3666.0,2.72775169]
[1754317114228,0.136,3665.9,3665.8,2.72785296]
[1754317114411,0.136,3665.9,3665.4,2.72820717]
[1754317114587,0.1368,3665.5,3665.4,2.72820717]
[1754317114922,0.1368,3665.5,3664.9,4.442]
[1754317115220,0.1368,3665.2,3664.5,0.9053]
[1754317115385,4.442,3665.4,3665.0,2.72849371]
[1754317115586,7.17024407,3665.4,3664.4,3.20320629]
[1754317115811,0.1368,3664.7,3664.6,2.72876438]
[1754317116126,0.1368,3664.5,3664.4,2.72894844]
[1754317116329,0.1368,3664.5,3663.9,0.9053]
[1754317116501,0.6594,3665.1,3663.9,0.9053]
[1754317116502,4.441,3664.7,3663.9,0.9053]
[1754317116682,0.1368,3664.1,3663.9,0.90377133]
[1754317116885,0.1368,3664.1,3663.5,2.73157091]
[1754317117114,0.1368,3663.6,3663.5,0.002]
[1754317117493,0.1368,3663.6,3663.5,2.73163013]
[1754317117723,0.1368,3663.6,3663.5,0.002]
[1754317117930,0.1368,3663.6,3663.5,3.20593013]
[1754317118087,0.1368,3663.6,3663.5,3.20310637]
[1754317118291,4.44,3664.3,3664.0,2.72919995]
[1754317118504,4.44,3664.3,3663.9,2.72927913]
[1754317118828,4.44,3664.3,3664.0,2.72923842]
[1754317119005,4.44,3664.3,3663.9,3.63460816]
[1754317119202,4.44,3664.3,3663.8,2.72940172]
[1754317119538,4.44,3664.3,3663.8,0.9053]
[1754317119704,0.1368,3663.9,3663.4,0.9053]
[1754317119913,0.1368,3663.6,3663.5,0.9053]
[1754317120215,4.44,3664.1,3664.0,2.72922]
[1754317120522,3.21663772,3664.7,3664.0,0.9053]
[1754317120523,0.48787,3664.7,3664.0,0.9053]
[1754317120725,4.5768,3664.2,3664.1,2.72918315]
[1754317120893,0.1368,3664.2,3664.1,2.72918315]
[1754317121424,0.1368,3664.2,3664.0,2.72924346]
[1754317121728,0.1368,3664.2,3662.6,0.9073]
[1754317121729,30.0,3664.0,3662.6,0.9073]
[1754317121915,3.95705302,3663.9,3662.6,0.9073]
[1754317122115,0.1368,3662.7,3662.6,0.002]
[1754317122323,0.1368,3662.7,3662.6,2.73230087]
[1754317122614,0.1368,3662.7,3662.6,0.002]
[1754317123033,0.1368,3662.7,3662.6,2.73230087]
[1754317123232,1.1021,3663.2,3662.6,2.73230087]
[1754317123527,2.20216068,3663.2,3662.6,0.002]
[1754317124029,2.20216068,3663.2,3662.6,2.73229963]
[1754317124216,2.20216068,3663.2,3662.6,2.73227551]
[1754317124731,0.6644,3663.7,3662.6,0.002]
[1754317124936,4.438,3663.6,3662.7,0.9053]
[1754317125095,2.72968129,3663.5,3662.8,2.73014533]
[1754317125296,3.39417854,3663.4,3662.7,2.73020057]
[1754317125533,3.39417854,3663.4,3662.6,0.002]
[1754317125534,2.72992423,3663.2,3662.6,0.002]
[1754317125745,2.72986915,3663.2,3662.6,0.002]
[1754317125898,0.6644,3663.3,3662.6,0.002]
[1754317126259,0.82697813,3663.5,3662.6,0.002]
[1754317126434,4.438,3663.2,3662.8,2.73008552]
[1754317126632,4.438,3663.2,3662.9,2.73006284]
[1754317127134,4.437,3663.2,3662.6,2.73224404]
[1754317127339,4.437,3663.2,3662.6,2.73228339]
[1754317127829,2.72979926,3663.3,3662.6,2.73228339]
[1754317127830,0.4377,3663.6,3663.0,2.72996823]
[1754317128033,4.437,3663.5,3663.2,2.72979735]
[1754317128194,4.437,3663.4,3663.3,2.72977482]
[1754317128393,4.437,3663.4,3663.2,0.9053]
[1754317128626,2.72924477,3664.1,3663.2,0.9053]
[1754317128828,2.72938573,3663.9,3663.2,3.63513931]
[1754317129027,0.99486448,3664.0,3662.9,1.3796]
[1754317129231,4.437,3663.9,3663.5,2.72961243]
[1754317129433,1.1021,3663.8,3663.1,2.72987588]
[1754317130149,4.436,3663.7,3662.9,0.9053]
[1754317130351,4.436,3663.7,3663.3,2.72975623]
[1754317130554,0.54308645,3663.7,3663.6,2.72955562]
[1754317130717,6.555,3664.3,3663.6,0.9053]
[1754317130918,4.436,3664.2,3663.6,0.9053]
[1754317131136,4.436,3664.2,3663.6,2.72955046]
[1754317131332,1.1021,3664.1,3663.5,2.72962373]
[1754317131655,1.48221516,3664.0,3663.5,2.72962373]
[1754317131831,1.1021,3663.9,3663.2,2.72980147]
[1754317132020,1.1021,3663.9,3663.3,2.72976871]
[1754317132219,1.1021,3663.9,3663.3,2.7297663]
[1754317132859,1.1021,3663.9,3662.9,3.6353088]
[1754317133020,3.26076156,3663.8,3663.0,2.72994788]
[1754317133216,0.1368,3663.1,3663.0,2.72999741]
[1754317134022,0.1368,3663.1,3662.9,2.73006192]
[1754317134222,7.16450976,3663.7,3662.6,0.4763]
[1754317134223,0.1368,3662.9,3662.6,0.4763]
[1754317134519,0.1368,3662.9,3662.8,2.73015179]
[1754317134734,0.53135057,3663.8,3662.8,2.73015179]
[1754317134735,0.53135057,3663.8,3663.3,2.72973321]
[1754317135057,2.72934745,3663.9,3663.3,0.9053]
[1754317135058,4.434,3663.4,3663.3,0.9053]
[1754317135353,4.5708,3663.4,3663.0,0.9053]
[1754317135516,0.54073136,3663.7,3663.1,0.9053]
[1754317135720,1.48221516,3664.0,3663.1,0.9053]
[1754317135915,0.1368,3663.2,3663.1,3.6352111]
[1754317136118,0.1368,3663.2,3663.1,4.1095111]
[1754317136352,0.1368,3663.2,3663.1,3.2042111]
[1754317136665,0.1368,3663.2,3663.1,4.1095111]
[1754317137521,4.433,3664.2,3663.1,1.3796]
[1754317137747,0.1368,3663.3,3663.2,2.72985367]
[1754317138143,0.1368,3663.3,3662.6,0.002]
[1754317138343,0.1368,3663.0,3662.6,0.002]
[1754317138556,0.1368,3662.7,3662.6,0.002]
[1754317138721,2.86702633,3662.7,3662.6,0.002]
[1754317138923,2.24181088,3662.7,3662.6,0.002]
[1754317139257,4.97203721,3662.7,3662.6,0.002]
[1754317139554,1.13971088,3662.7,3662.6,0.002]
[1754317139940,5.2332,3662.7,3662.6,0.002]
[1754317140140,7.96342633,3662.7,3662.6,0.002]
[1754317140346,8.40112633,3662.7,3662.6,0.002]
[1754317141072,4.5688,3662.7,3662.6,0.002]
[1754317141420,8.40522633,3662.7,3662.6,0.002]
[1754317141619,9.5187583,3662.7,3662.6,0.002]
[1754317142246,2.73030087,3662.6,3662.2,0.002]
[1754317142468,2.73052453,3662.3,3662.2,0.002]
[1754317142779,2.73052453,3662.3,3662.0,0.002]
[1754317142780,3.28067365,3662.1,3662.0,0.002]
[1754317142925,5.73074822,3662.0,3661.9,0.002]
[1754317143125,2.73148594,3661.1,3660.3,2.73194415]
[1754317143432,4.431,3661.0,3660.3,0.8411]
[1754317143625,0.6392,3662.6,3660.4,0.4469]
[1754317143822,0.6392,3662.6,3660.9,0.1368]
[1754317144133,0.1368,3661.5,3661.0,1.288]
[1754317144333,4.431,3661.6,3661.1,0.8411]
[1754317144521,7.4328532,3662.4,3661.2,1.288]
[1754317144722,0.1368,3661.4,3661.3,0.8411]
[1754317144930,0.1368,3661.4,3661.3,3.57237031]
[1754317145264,0.1368,3661.4,3661.0,2.73142973]
[1754317145470,0.1368,3661.4,3661.1,3.57250859]
[1754317145676,4.43,3661.3,3660.9,0.4469]
[1754317145831,0.1368,3661.0,3660.9,2.73156873]
[1754317146027,0.1368,3661.0,3660.2,0.8411]
[1754317146261,0.1368,3661.0,3660.6,2.73174336]
[1754317146427,4.43,3661.4,3660.3,1.288]
[1754317146622,0.1368,3660.4,3659.6,0.1368]
[1754317146823,4.43,3660.5,3660.0,0.8411]
[1754317147122,0.92458,3661.3,3660.1,1.288]
[1754317147323,0.1368,3660.4,3660.2,1.31532091]
[1754317147555,4.43,3661.1,3661.0,2.73145765]
[1754317147759,4.43,3661.1,3661.0,4.01949412]
[1754317148060,0.1368,3661.1,3660.9,2.73154876]
[1754317148261,4.43,3661.2,3661.1,2.73141951]
[1754317148582,4.43,3661.3,3661.2,2.73134491]
[1754317148899,4.43,3661.6,3660.3,2.7320165]
[1754317149104,0.79281459,3661.7,3661.3,2.73127031]
[1754317149401,4.429,3661.6,3661.4,3.57223928]
[1754317149597,4.429,3661.6,3661.4,3.57228197]
[1754317149799,4.429,3661.6,3660.7,2.86849475]
[1754317149800,0.1368,3661.5,3661.0,3.572575]
[1754317150100,0.1368,3661.5,3661.1,2.73141951]
[1754317150278,0.1368,3661.1,3660.8,0.4469]
[1754317150475,0.1368,3661.1,3661.0,2.73149412]
[1754317150681,0.79281459,3661.7,3661.1,2.73135349]
[1754317150876,0.79281459,3661.7,3660.6,0.8411]
[1754317150877,0.1368,3661.1,3660.6,0.8411]
[1754317151201,0.1368,3661.1,3660.8,2.73162405]
[1754317151403,0.1368,3660.7,3660.6,0.8411]
[1754317151600,0.1368,3660.7,3660.6,3.5728926]
[1754317151772,0.1368,3660.7,3660.5,2.73185872]
[1754317151973,0.1368,3660.5,3660.4,3.57303991]
[1754317152274,0.1368,3660.5,3660.4,4.01993991]
[1754317153429,3.94133812,3661.7,3661.0,2.73143045]
[1754317153719,3.94133812,3661.7,3661.1,2.73140443]
[1754317153720,1.21035168,3661.7,3661.1,2.73140443]
[1754317153925,4.428,3661.6,3661.1,2.73140443]
[1754317154224,4.428,3661.6,3660.9,3.57266539]
[1754317154225,0.1368,3661.2,3661.0,2.7314743]
[1754317154428,4.428,3661.6,3661.0,2.7314743]
[1754317154730,0.1368,3661.1,3661.0,2.7314743]
[1754317154934,4.5648,3661.1,3661.0,2.7314743]
[1754317155297,4.5648,3661.1,3660.9,3.57264108]
[1754317155522,4.5648,3661.1,3660.5,0.8411]
[1754317155845,0.1368,3660.9,3660.5,0.8411]
[1754317156151,0.1368,3660.6,3660.5,3.57295214]
[1754317156725,0.1368,3660.6,3659.8,0.1368]
[1754317156949,2.73198818,3660.4,3659.7,2.73245459]
[1754317157235,2.73203228,3660.3,3659.5,2.73256487]
[1754317157450,1.09805666,3660.3,3659.6,0.8411]
[1754317157734,4.427,3660.6,3659.5,2.73259831]
[1754317157913,3.38389114,3660.2,3659.2,0.8411]
[1754317158223,3.82169114,3660.2,3659.1,2.73288306]
[1754317158424,33.82169114,3660.2,3659.0,2.73295834]
[1754317158627,2.73263994,3659.5,3658.5,0.8411]
[1754317158802,7.15969058,3659.4,3658.8,2.73308189]
[1754317158991,0.55,3660.4,3658.5,0.8411]
[1754317158992,7.15978198,3659.3,3658.5,0.8411]
[1754317159188,7.15989932,3659.2,3658.5,0.8411]
[1754317159388,2.73293201,3659.1,3657.8,2.73383426]
[1754317159729,2.73293201,3659.1,3657.4,2.73613386]
[1754317159730,2.73291246,3659.1,3658.2,2.73355921]
[1754317159915,3.4378,3660.0,3658.7,2.73320139]
[1754317160231,3.0,3659.8,3658.5,0.8411]
[1754317160390,2.73253907,3659.6,3658.7,2.73319771]
[1754317160587,37.15863386,3659.5,3658.8,2.73307513]
[1754317160799,2.73275697,3659.4,3658.7,3.57429807]
[1754317161002,2.73259372,3659.6,3658.8,2.73307887]
[1754317161213,7.1586275,3659.5,3658.7,0.8411]
[1754317161415,4.426,3659.5,3658.2,0.8411]
[1754317161615,31.0896,3659.4,3658.0,0.8411]
[1754317161791,30.0,3659.3,3658.7,2.73320625]
[1754317161991,4.427,3659.2,3658.8,2.73313612]
[1754317162188,4.426,3659.1,3658.9,1.288]
[1754317162411,4.426,3659.0,3658.9,3.5741509]
[1754317162626,0.6518,3660.2,3658.9,1.12232618]
[1754317162804,2.7325373,3659.7,3658.9,3.17994901]
[1754317163005,4.426,3659.6,3659.0,2.73296552]
[1754317163212,4.426,3659.6,3659.1,2.73289584]
[1754317163533,2.73178615,3660.7,3659.2,1.288]
[1754317163729,2.73230918,3660.0,3659.1,2.73285119]
[1754317163931,2.73252985,3659.7,3658.8,2.73308489]
[1754317164134,3.82212395,3659.7,3658.8,2.73308489]
[1754317164334,2.73254977,3659.6,3658.8,2.73308489]
[1754317164626,1.0896,3659.7,3658.9,2.73306184]
[1754317164931,30.0,3659.6,3658.6,0.8411]
[1754317165130,1.82887776,3659.5,3658.3,1.288]
[1754317165430,2.73313653,3658.9,3658.1,2.73365809]
[1754317165598,4.426,3658.8,3658.1,2.73365809]
[1754317165794,4.426,3658.8,3658.3,2.73345057]
[1754317165998,4.426,3658.8,3658.2,2.73358019]
[1754317166321,4.425,3658.7,3658.3,0.8411]
[1754317166519,4.425,3658.6,3658.5,2.73334857]
[1754317166693,4.425,3658.6,3658.5,0.8411]
[1754317166894,4.425,3658.6,3658.3,2.73349813]
[1754317167089,4.425,3658.6,3658.1,3.57475405]
[1754317167090,0.1368,3658.4,3657.9,0.8411]
[1754317167333,0.1368,3658.2,3658.1,2.73360884]
[1754317167505,0.1368,3658.2,3657.7,0.1368]
[1754317167506,4.5618,3658.2,3657.7,0.1368]
[1754317167719,0.1368,3658.5,3657.8,1.288]
[1754317167909,4.425,3659.4,3658.2,2.73353961]
[1754317168113,4.425,3659.4,3659.2,2.73283153]
[1754317168346,0.27323092,3659.9,3659.2,0.8411]
[1754317168652,0.1368,3659.3,3659.1,2.73291246]
[1754317168854,34.425,3659.8,3659.1,2.73291246]
[1754317168855,4.425,3659.8,3659.4,2.7326856]
[1754317169150,0.1368,3659.5,3659.4,3.57378841]
[1754317169480,3.55267871,3661.0,3659.5,2.73258468]
[1754317169481,2.73207019,3660.3,3659.5,2.73258468]
[1754317169746,34.425,3660.2,3659.5,2.73261374]
[1754317170044,0.1368,3659.6,3659.5,2.73261374]
[1754317170433,0.1368,3659.6,3659.5,4.02061374]
[1754317170624,0.13506701,3659.6,3659.5,4.02061374]
[1754317171152,0.13506701,3659.6,3659.5,0.8411]
[1754317171339,0.13506701,3659.6,3659.2,2.73283751]
[1754317171340,0.13506701,3659.6,3659.2,2.73277395]
[1754317171534,0.13506701,3659.6,3659.3,2.7327498]
[1754317171843,4.424,3659.9,3659.2,0.8485]
[1754317172011,30.71562091,3659.8,3659.1,2.73284546]
[1754317172211,0.1368,3659.2,3659.1,2.73284546]
[1754317173021,0.1368,3659.2,3659.1,3.58134546]
[1754317173232,0.1368,3659.2,3659.1,4.05584546]
[1754317173615,0.1368,3659.2,3659.1,3.58141246]
[1754317173814,0.1368,3659.2,3659.1,4.05591246]
[1754317174111,0.1368,3659.2,3659.1,4.73480475]
[1754317174548,0.1368,3659.2,3659.1,4.73680475]
[1754317174753,3.6863,3662.4,3659.1,4.73680475]
[1754317174754,0.1368,3660.3,3659.2,3.0]
[1754317174951,0.001,3661.0,3660.9,2.73156873]
[1754317175162,0.1378,3661.0,3660.8,2.73164088]
[1754317175369,0.1378,3661.0,3660.9,2.73156873]
[1754317175370,0.001,3661.0,3660.9,2.73156873]
[1754317175840,0.1378,3661.0,3660.9,4.05456873]
[1754317176392,0.1378,3661.0,3660.9,1.323]
[1754317176863,0.1378,3661.0,3660.9,4.05456873]
[1754317177065,0.1378,3661.0,3660.9,1.323]
[1754317177566,0.1378,3661.0,3660.7,2.73169225]
[1754317177870,0.001,3661.0,3660.9,2.73156873]
[1754317178083,0.001,3661.0,3660.8,2.73161611]
[1754317178384,0.001,3661.0,3660.8,1.323]
[1754317178524,0.001,3661.0,3660.8,4.05462374]
[1754317178725,0.001,3661.0,3660.9,3.58006873]
[1754317178935,0.001,3661.0,3660.9,1.323]
[1754317179273,0.1378,3661.0,3660.9,1.323]
[1754317179478,0.1378,3661.0,3660.9,4.05456873]
[1754317179773,0.1378,3661.0,3660.9,1.323]
[1754317180077,0.1378,3661.0,3660.9,4.05456873]
[1754317180781,0.001,3661.0,3660.9,4.73319681]
[1754317181249,0.001,3661.0,3660.9,0.8485]
[1754317181452,0.001,3661.0,3660.5,2.73183039]
[1754317181639,0.001,3661.0,3660.6,2.73178612]